bitfinex-derivatives/quotes_BTCF0:USTF0_20260107
["timestamp","ask_amount","ask_price","bid_price","bid_amount"]
[1767827592699,0.03114057,91205.0,91187.0,0.03142162]
[1767827592905,0.09332,91204.0,91192.0,0.03142162]
[1767827596301,0.09332,91204.0,91193.0,0.03142162]
[1767827596495,0.06616841,91204.0,91197.0,0.010974]
[1767827596897,0.06616841,91204.0,91195.0,0.03142162]
[1767827597303,0.06616841,91204.0,91194.0,0.10532754]
[1767827598794,0.13343945,91210.0,91195.0,0.04239662]
[1767827598999,0.13343945,91210.0,91196.0,0.03142162]
[1767827599796,0.09328,91211.0,91199.0,0.010974]
[1767827600305,0.09328,91211.0,91197.0,0.03142162]
[1767827600512,0.13343945,91210.0,91197.0,0.03142162]
[1767827601012,0.13343945,91210.0,91196.0,0.10532754]
[1767827603205,0.13343945,91210.0,91198.0,0.010974]
[1767827603404,0.13343945,91210.0,91196.0,0.09435254]
[1767827604703,0.13343945,91210.0,91196.0,0.10532654]
[1767827606115,0.13343945,91210.0,91196.0,0.09435254]
[1767827606416,0.13343945,91210.0,91196.0,0.010974]
[1767827607912,0.13343945,91210.0,91194.0,0.03142162]
[1767827608521,0.13343945,91210.0,91197.0,0.010974]
[1767827609108,0.13343945,91210.0,91199.0,0.010974]
[1767827609310,0.13539257,91215.0,91196.0,0.010974]
[1767827609612,0.13343945,91210.0,91196.0,0.010974]
[1767827610220,0.13343945,91210.0,91192.0,0.03142162]
[1767827610411,0.13343945,91210.0,91193.0,0.03142162]
[1767827611112,0.13343945,91210.0,91198.0,0.010974]
[1767827612733,0.13343945,91210.0,91199.0,0.010974]
[1767827612931,0.03114057,91214.0,91202.0,0.010974]
[1767827613128,0.02923663,91221.0,91207.0,0.010973]
[1767827613334,0.02923663,91221.0,91208.0,0.010973]
[1767827613335,0.12251663,91221.0,91208.0,0.010973]
[1767827613936,0.13343945,91220.0,91208.0,0.010973]
[1767827614121,0.12251663,91221.0,91203.0,0.02812234]
[1767827614326,0.09328,91223.0,91211.0,0.010973]
[1767827614735,0.09328,91223.0,91209.0,0.010973]
[1767827614931,0.010971,91222.0,91207.0,0.010973]
[1767827615234,0.010971,91222.0,91206.0,0.010973]
[1767827615639,0.010972,91219.0,91203.0,0.02812234]
[1767827615837,0.13343945,91220.0,91203.0,0.03909634]
[1767827616233,0.16267608,91220.0,91203.0,0.010974]
[1767827617436,0.16267608,91220.0,91204.0,0.010973]
[1767827617822,0.16267608,91220.0,91200.0,0.02812234]
[1767827618028,0.16267608,91220.0,91205.0,0.010973]
[1767827619430,0.02923663,91220.0,91200.0,0.12317823]
[1767827619636,0.16267608,91220.0,91204.0,0.010973]
[1767827621341,0.02923663,91220.0,91208.0,0.010973]
[1767827621740,0.02923663,91220.0,91209.0,0.010973]
[1767827622134,0.09328,91223.0,91203.0,0.02812234]
[1767827622333,0.02923663,91222.0,91203.0,0.02812234]
[1767827622735,0.010972,91221.0,91206.0,0.010973]
[1767827622931,0.02923663,91222.0,91203.0,0.02812234]
[1767827623138,0.09328,91227.0,91211.0,0.02812234]
[1767827623438,0.02923663,91225.0,91212.0,0.010973]
[1767827623639,0.02923663,91224.0,91210.0,0.010973]
[1767827623840,0.02923663,91223.0,91210.0,0.010973]
[1767827624839,0.02923663,91223.0,91206.0,0.09328]
[1767827624840,0.02923663,91212.0,91206.0,0.09328]
[1767827625031,0.02923663,91212.0,91193.0,0.02812234]
[1767827625032,0.02923663,91212.0,91203.0,0.09328]
[1767827625238,0.010973,91211.0,91202.0,0.09328]
[1767827625438,0.02923663,91212.0,91195.0,0.010975]
[1767827625639,0.02923663,91211.0,91197.0,0.010974]
[1767827627539,0.09266572,91213.0,91197.0,0.010974]
[1767827629452,0.02923663,91215.0,91196.0,0.12140234]
[1767827631252,0.09266572,91223.0,91204.0,0.02812234]
[1767827631441,0.09266572,91223.0,91209.0,0.010973]
[1767827631637,0.02923663,91227.0,91211.0,0.010973]
[1767827631848,0.10363672,91228.0,91203.0,0.09505589]
[1767827631849,0.02923663,91226.0,91213.0,0.010972]
[1767827632153,0.02923663,91227.0,91213.0,0.010972]
[1767827632545,0.02923663,91226.0,91213.0,0.010972]
[1767827632746,0.02923663,91226.0,91210.0,0.010973]
[1767827632937,0.02923663,91226.0,91212.0,0.010973]
[1767827633136,0.02923663,91226.0,91211.0,0.010973]
[1767827634054,0.02923663,91226.0,91207.0,0.12317823]
[1767827634352,0.02923663,91226.0,91210.0,0.010973]
[1767827635048,0.09266572,91245.0,91229.0,0.010971]
[1767827635253,0.09328,91244.0,91227.0,0.02812234]
[1767827635553,0.010969,91241.0,91226.0,0.09505589]
[1767827635750,0.09328,91244.0,91217.0,0.09328]
[1767827635751,0.12190235,91237.0,91217.0,0.09328]
[1767827636051,0.02923663,91229.0,91217.0,0.09328]
[1767827636552,0.02923663,91226.0,91217.0,0.09328]
[1767827636748,0.02923663,91232.0,91217.0,0.09328]
[1767827638052,0.02923663,91225.0,91211.0,0.010973]
[1767827638249,0.02923663,91223.0,91211.0,0.010973]
[1767827638451,0.02923663,91223.0,91210.0,0.010973]
[1767827638749,0.04020763,91222.0,91208.0,0.09328]
[1767827638948,0.02923663,91220.0,91204.0,0.010974]
[1767827639150,0.02923663,91217.0,91203.0,0.010974]
[1767827639342,0.02923663,91217.0,91202.0,0.09328]
[1767827640154,0.02923663,91217.0,91205.0,0.010973]
[1767827640351,0.09266572,91218.0,91205.0,0.010973]
[1767827642959,0.09266572,91218.0,91202.0,0.104254]
[1767827643163,0.13129481,91218.0,91202.0,0.104254]
[1767827643660,0.12032281,91218.0,91202.0,0.09328]
[1767827644155,0.02765709,91209.0,91195.0,0.010975]
[1767827645053,0.02765709,91209.0,91197.0,0.010974]
[1767827645254,0.09328,91222.0,91194.0,0.09328]
[1767827645255,0.03862909,91217.0,91198.0,0.0266287]
[1767827645454,0.03862909,91217.0,91199.0,0.0266287]
[1767827645758,0.03862909,91215.0,91197.0,0.010974]
[1767827646254,0.02765709,91208.0,91194.0,0.09328]
[1767827646557,0.02765709,91208.0,91197.0,0.010974]
[1767827646757,0.09897954,91209.0,91197.0,0.010974]
[1767827647159,0.02765709,91207.0,91185.0,0.010976]
[1767827647360,0.02765709,91204.0,91186.0,0.09328]
[1767827647560,0.02765709,91208.0,91187.0,0.0266287]
[1767827648060,0.02765709,91208.0,91188.0,0.0266287]
[1767827648554,0.02765709,91208.0,91194.0,0.010975]
[1767827650355,0.02765709,91212.0,91193.0,0.0266287]
[1767827652167,0.02765709,91212.0,91195.0,0.010975]
[1767827656370,0.02765709,91212.0,91197.0,0.010974]
[1767827656761,0.02765709,91212.0,91195.0,0.010975]
[1767827658157,0.12663663,91208.0,91189.0,0.010975]
[1767827658363,0.02765709,91205.0,91191.0,0.010975]
[1767827659276,0.09897954,91206.0,91192.0,0.010975]
[1767827659868,0.02765709,91209.0,91192.0,0.010975]
[1767827660583,0.03863009,91209.0,91192.0,0.010975]
[1767827660774,0.02765709,91206.0,91192.0,0.010975]
[1767827661475,0.02765709,91205.0,91187.0,0.09298872]
[1767827661671,0.02765709,91205.0,91192.0,0.010975]
[1767827661864,0.02765709,91205.0,91194.0,0.010975]
[1767827662764,0.09897954,91206.0,91194.0,0.010975]
[1767827664274,0.010973,91205.0,91187.0,0.11961742]
[1767827664774,0.09897954,91206.0,91193.0,0.010975]
[1767827666272,0.010973,91205.0,91190.0,0.010975]
[1767827666874,0.09897954,91206.0,91187.0,0.11961742]
[1767827667068,0.09897954,91206.0,91196.0,0.010975]
[1767827667269,0.09897954,91206.0,91193.0,0.010975]
[1767827668572,0.09897954,91206.0,91188.0,0.0266287]
[1767827668573,0.09897954,91206.0,91195.0,0.010975]
[1767827669178,0.09897954,91206.0,91196.0,0.010974]
[1767827669373,0.02765709,91208.0,91197.0,0.010974]
[1767827669579,0.03863009,91211.0,91197.0,0.010974]
[1767827672281,0.010973,91210.0,91195.0,0.010975]
[1767827674578,0.02765709,91211.0,91196.0,0.010974]
[1767827677979,0.02539634,91218.0,91202.0,0.010974]
[1767827678177,0.09328,91217.0,91202.0,0.010974]
[1767827678382,0.11867634,91217.0,91202.0,0.010974]
[1767827678571,0.02539634,91216.0,91202.0,0.010974]
[1767827680981,0.02539634,91216.0,91197.0,0.010974]
[1767827681177,0.02539634,91216.0,91204.0,0.010973]
[1767827682385,0.02539634,91216.0,91196.0,0.02593908]
[1767827683276,0.02539634,91216.0,91204.0,0.010974]
[1767827684886,0.03636834,91216.0,91203.0,0.010974]
[1767827685284,0.02539634,91235.0,91205.0,0.09029959]
[1767827685486,0.02539634,91245.0,91225.0,0.010971]
[1767827685689,0.02539634,91243.0,91225.0,0.010971]
[1767827685986,0.02539634,91243.0,91228.0,0.010971]
[1767827686390,0.02539634,91242.0,91224.0,0.010971]
[1767827686891,0.02539634,91241.0,91224.0,0.010971]
[1767827687184,0.02539634,91240.0,91224.0,0.010971]
[1767827688483,0.1587,91240.0,91224.0,0.010971]
[1767827689986,0.01060612,91263.0,91221.0,0.09328]
[1767827689987,0.02539634,91262.0,91242.0,0.02593908]
[1767827690186,0.02539634,91262.0,91243.0,0.03690808]
[1767827690490,0.02539634,91262.0,91243.0,0.010969]
[1767827691088,0.02539634,91258.0,91240.0,0.09328]
[1767827691793,0.13330366,91250.0,91240.0,0.09328]
[1767827691994,0.02539634,91251.0,91240.0,0.09328]
[1767827692983,0.02539634,91246.0,91230.0,0.01097]
[1767827693184,0.02539634,91246.0,91231.0,0.09328]
[1767827693382,0.02539634,91245.0,91231.0,0.09328]
[1767827694388,5.8e-07,91259.0,91251.0,0.11623867]
[1767827694589,0.03539634,91268.0,91250.0,0.13330366]
[1767827694897,0.02539634,91267.0,91252.0,0.010968]
[1767827696186,0.02539634,91265.0,91248.0,0.010968]
[1767827697489,0.02539634,91261.0,91247.0,0.09324]
[1767827697686,0.02539634,91303.0,91249.0,0.02593908]
[1767827697888,0.02539634,91286.0,91265.0,0.03690508]
[1767827698196,0.02539634,91286.0,91269.0,0.010966]
[1767827698391,0.02539634,91286.0,91272.0,0.010965]
[1767827698789,0.02539634,91286.0,91268.0,0.010966]
[1767827700394,0.09324,91297.0,91263.0,0.09324]
[1767827700395,0.02539634,91299.0,91279.0,0.010965]
[1767827700894,0.02539634,91298.0,91275.0,0.010965]
[1767827701203,0.02539634,91289.0,91274.0,0.09324]
[1767827701386,0.02539634,91315.0,91274.0,0.09324]
[1767827701694,0.02539634,91309.0,91282.0,0.010964]
[1767827701897,0.02336652,91299.0,91271.0,0.010965]
[1767827702199,0.010961,91310.0,91277.0,0.010965]
[1767827702499,0.11970605,91299.0,91278.0,0.11757429]
[1767827702993,0.09633953,91299.0,91280.0,0.010964]
[1767827703301,0.11970605,91299.0,91278.0,0.1926053]
[1767827703701,0.11970605,91298.0,91278.0,0.09324]
[1767827704001,0.02336652,91297.0,91278.0,0.09324]
[1767827704298,0.09633953,91293.0,91278.0,0.09324]
[1767827704497,0.13330366,91290.0,91269.0,0.02433429]
[1767827704698,0.11970605,91291.0,91270.0,0.13330366]
[1767827704909,0.010962,91297.0,91270.0,0.0993653]
[1767827705090,0.30427014,91319.0,91271.0,0.09324]
[1767827705091,0.02336652,91309.0,91271.0,0.09324]
[1767827705298,0.09633953,91300.0,91272.0,0.09324]
[1767827705500,0.09633953,91300.0,91273.0,0.09324]
[1767827705688,0.09633953,91300.0,91280.0,0.13330366]
[1767827705889,0.22964319,91300.0,91280.0,0.13330366]
[1767827706090,0.22964319,91300.0,91278.0,0.010965]
[1767827706091,0.02336652,91298.0,91278.0,0.010965]
[1767827706302,0.09633953,91297.0,91278.0,0.010965]
[1767827706503,0.11970605,91297.0,91274.0,0.104205]
[1767827706697,0.09633953,91301.0,91283.0,0.010964]
[1767827706896,0.09633953,91299.0,91284.0,0.0932]
[1767827707296,0.09633953,91297.0,91284.0,0.0932]
[1767827710508,0.11970605,91297.0,91284.0,0.0932]
[1767827711008,0.11970605,91297.0,91278.0,0.0932]
[1767827711009,0.11970605,91289.0,91278.0,0.0932]
[1767827711508,0.09633953,91316.0,91295.0,0.010963]
[1767827711696,0.11970605,91312.0,91300.0,0.13330366]
[1767827711896,0.11970605,91312.0,91294.0,0.104163]
[1767827712209,0.11970605,91312.0,91297.0,0.010962]
[1767827712608,0.11970605,91312.0,91294.0,0.0932]
[1767827712804,0.11970605,91312.0,91295.0,0.010963]
[1767827713210,0.09633953,91310.0,91295.0,0.010963]
[1767827713807,0.09633953,91310.0,91298.0,0.010962]
[1767827714008,0.09633953,91317.0,91302.0,0.010962]
[1767827715317,0.11970605,91317.0,91302.0,0.010962]
[1767827715511,0.09633953,91323.0,91305.0,0.010961]
[1767827715712,0.09633953,91323.0,91302.0,0.02433429]
[1767827715914,0.11970605,91323.0,91306.0,0.010961]
[1767827716109,0.11970605,91313.0,91294.0,0.0932]
[1767827716314,0.11970605,91311.0,91297.0,0.010962]
[1767827716512,0.01056294,91339.0,91294.0,0.0932]
[1767827716513,0.09633953,91346.0,91321.0,0.0993653]
[1767827716728,0.09633953,91336.0,91330.0,0.00731941]
[1767827717014,0.09633953,91336.0,91321.0,0.0932]
[1767827717215,0.11970605,91336.0,91320.0,0.10416]
[1767827717422,0.02336652,91335.0,91313.0,0.0993653]
[1767827717621,0.02336652,91328.0,91315.0,0.01096]
[1767827717821,0.02336652,91328.0,91316.0,0.0932]
[1767827718019,0.02336652,91323.0,91312.0,0.0932]
[1767827718220,0.11970605,91322.0,91310.0,0.0932]
[1767827718424,0.11970605,91320.0,91309.0,0.0932]
[1767827718821,0.11970605,91320.0,91299.0,0.0993653]
[1767827719022,0.11970605,91309.0,91299.0,0.0932]
[1767827719227,0.11970605,91303.0,91292.0,0.0932]
[1767827719522,0.11970605,91301.0,91288.0,0.0932]
[1767827720124,0.11970605,91301.0,91285.0,0.010964]
[1767827720333,0.11970605,91301.0,91286.0,0.0932]
[1767827720633,0.010959,91323.0,91286.0,0.0932]
[1767827720634,0.11970605,91314.0,91286.0,0.02433429]
[1767827720820,0.11970605,91314.0,91300.0,0.010962]
[1767827721426,0.02336652,91320.0,91297.0,0.0932]
[1767827721633,0.09633953,91319.0,91297.0,0.0932]
[1767827722534,0.09633953,91317.0,91297.0,0.0932]
[1767827722723,0.11970605,91317.0,91298.0,0.010962]
[1767827724025,0.08730545,91348.0,91298.0,0.4]
[1767827724026,0.0932,91341.0,91298.0,0.4]
[1767827724225,0.0932,91341.0,91297.0,0.0932]
[1767827724226,0.09633953,91333.0,91317.0,0.01096]
[1767827724428,0.09633953,91333.0,91319.0,0.01096]
[1767827724630,0.09633953,91333.0,91318.0,0.10416]
[1767827724829,0.09633953,91333.0,91318.0,0.0932]
[1767827725336,0.11970605,91329.0,91318.0,0.0932]
[1767827726132,0.010958,91338.0,91280.0,0.14969054]
[1767827726133,0.11970605,91323.0,91315.0,0.09316]
[1767827726436,0.11970605,91323.0,91312.0,0.09316]
[1767827726632,0.02336652,91322.0,91300.0,0.010962]
[1767827726832,0.09633953,91317.0,91301.0,0.09316]
[1767827727831,0.11970605,91345.0,91301.0,0.09316]
[1767827728025,0.09633953,91327.0,91309.0,0.010961]
[1767827729231,0.07058744,91327.0,91305.0,0.02433429]
[1767827729535,0.07058744,91327.0,91306.0,0.010961]
[1767827730233,0.02336652,91326.0,91301.0,0.09316]
[1767827730433,0.02336652,91326.0,91302.0,0.010962]
[1767827730836,0.02336652,91326.0,91298.0,0.010962]
[1767827731136,0.09633953,91325.0,91299.0,0.09316]
[1767827731335,0.02336652,91347.0,91318.0,0.02433429]
[1767827731535,0.09633953,91338.0,91318.0,0.10412]
[1767827732441,0.09662299,91337.0,91318.0,0.09316]
[1767827732632,0.09662299,91336.0,91318.0,0.09316]
[1767827733337,0.09662299,91321.0,91311.0,0.09316]
[1767827733733,0.09662299,91321.0,91311.0,0.04622964]
[1767827736255,0.09316,91333.0,91311.0,0.07425684]
[1767827736437,0.09662299,91351.0,91325.0,0.010959]
[1767827736739,0.09662299,91348.0,91326.0,0.010959]
[1767827737142,0.09662299,91346.0,91326.0,0.010959]
[1767827737343,0.09662299,91346.0,91325.0,0.09316]
[1767827739147,0.09662299,91345.0,91325.0,0.09316]
[1767827739742,0.09662299,91344.0,91325.0,0.09316]
[1767827739944,0.09662299,91343.0,91325.0,0.09316]
[1767827740339,0.09662299,91342.0,91325.0,0.09316]
[1767827740534,0.01314542,91349.0,91325.0,0.09316]
[1767827740535,0.09662299,91339.0,91325.0,0.09316]
[1767827740740,0.09662299,91335.0,91321.0,0.09316]
[1767827741257,0.09662299,91330.0,91317.0,0.09316]
[1767827741550,0.09662299,91326.0,91304.0,0.09300528]
[1767827741851,0.09662299,91326.0,91311.0,0.09316]
[1767827742054,0.09662299,91326.0,91309.0,0.09316]
[1767827742555,0.09662299,91324.0,91309.0,0.09316]
[1767827742851,0.09662299,91323.0,91309.0,0.09316]
[1767827743642,0.12443408,91323.0,91309.0,0.09316]
[1767827743842,0.09662299,91322.0,91309.0,0.09316]
[1767827744249,0.09662299,91319.0,91309.0,0.09316]
[1767827744941,0.09662299,91319.0,91291.0,0.09300528]
[1767827744942,0.09662299,91315.0,91297.0,0.010962]
[1767827745541,0.12443408,91315.0,91297.0,0.010962]
[1767827745741,0.09662299,91314.0,91297.0,0.010962]
[1767827746548,0.09662299,91314.0,91296.0,0.09316]
[1767827747444,0.09662299,91314.0,91296.0,0.104122]
[1767827747649,0.09662299,91314.0,91298.0,0.010962]
[1767827748253,0.09662299,91310.0,91293.0,0.010963]
[1767827748451,0.09662299,91310.0,91294.0,0.09316]
[1767827749554,0.02781109,91307.0,91282.0,0.0280272]
[1767827749861,0.12443408,91292.0,91273.0,0.09316]
[1767827750052,0.09662299,91289.0,91273.0,0.09316]
[1767827751053,0.010964,91288.0,91265.0,0.0389932]
[1767827751248,0.10758699,91284.0,91266.0,0.09316]
[1767827751656,0.09662299,91284.0,91266.0,0.09316]
[1767827752257,0.09662299,91284.0,91267.0,0.010966]
[1767827754368,0.12443408,91284.0,91267.0,0.010966]
[1767827754564,0.09662299,91282.0,91267.0,0.010966]
[1767827754859,0.09662299,91282.0,91266.0,0.09316]
[1767827755066,0.09662299,91280.0,91266.0,0.09316]
[1767827756259,0.09662299,91280.0,91266.0,0.104126]
[1767827756869,0.09662299,91280.0,91266.0,0.09316]
[1767827761861,0.09662299,91280.0,91266.0,0.104126]
[1767827762566,0.09662299,91280.0,91268.0,0.010966]
[1767827762961,0.09662299,91280.0,91267.0,0.010966]
[1767827763367,0.12997788,91285.0,91267.0,0.010966]
[1767827763769,0.0932,91287.0,91273.0,0.02682572]
[1767827763966,0.0932,91290.0,91273.0,0.03779072]
[1767827764176,0.0932,91290.0,91273.0,0.02682572]
[1767827764362,0.0932,91292.0,91273.0,0.02682572]
[1767827765171,0.0932,91292.0,91274.0,0.010965]
[1767827766574,0.104163,91292.0,91274.0,0.010965]
[1767827766872,0.010963,91290.0,91273.0,0.02682572]
[1767827767267,0.010963,91290.0,91272.0,0.10738037]
[1767827767470,0.010963,91290.0,91273.0,0.010965]
[1767827768172,0.09195862,91291.0,91273.0,0.010965]
[1767827768374,0.10292162,91291.0,91273.0,0.010965]
[1767827769169,0.0932,91292.0,91274.0,0.02682572]
[1767827769363,0.02705526,91290.0,91273.0,0.010965]
[1767827769566,0.09195862,91283.0,91268.0,0.010966]
[1767827769970,0.11901388,91283.0,91268.0,0.010966]
[1767827770164,0.11901388,91281.0,91268.0,0.010966]
[1767827770571,0.09195862,91281.0,91268.0,0.010966]
[1767827771274,0.09195862,91281.0,91266.0,0.09316]
[1767827771469,0.02705526,91285.0,91272.0,0.010965]
[1767827773374,0.02705526,91285.0,91273.0,0.010965]
[1767827773676,0.02705526,91291.0,91273.0,0.010965]
[1767827773875,0.11901388,91291.0,91273.0,0.010965]
[1767827774067,0.09195862,91290.0,91273.0,0.010965]
[1767827774266,0.10292162,91290.0,91269.0,0.03779172]
[1767827774475,0.10292162,91290.0,91271.0,0.010965]
[1767827774769,0.010964,91288.0,91269.0,0.02682572]
[1767827774970,0.010964,91288.0,91268.0,0.010966]
[1767827774971,0.010957,91344.0,91286.0,0.09641537]
[1767827775176,0.13642637,91348.0,91288.0,0.010963]
[1767827775177,0.09195862,91305.0,91288.0,0.010963]
[1767827775374,0.09195862,91305.0,91291.0,0.010963]
[1767827775673,0.09195862,91305.0,91287.0,0.010964]
[1767827775869,0.09195862,91304.0,91286.0,0.010964]
[1767827776076,0.11901388,91308.0,91286.0,0.010964]
[1767827776272,0.09195862,91306.0,91289.0,0.010963]
[1767827776878,0.09195862,91306.0,91286.0,0.02682572]
[1767827777065,0.11901388,91306.0,91286.0,0.02682572]
[1767827777377,0.21221388,91311.0,91291.0,0.010963]
[1767827777577,0.11901388,91310.0,91291.0,0.010963]
[1767827777972,0.11901388,91310.0,91294.0,0.010963]
[1767827778173,0.09195862,91310.0,91294.0,0.010963]
[1767827778569,0.44396,91329.0,91285.0,0.18961537]
[1767827778570,0.09195862,91334.0,91302.0,0.09641537]
[1767827778771,0.09195862,91332.0,91309.0,0.010961]
[1767827779074,0.09195862,91331.0,91309.0,0.010961]
[1767827779273,0.09195862,91331.0,91310.0,0.02682572]
[1767827779473,0.11901388,91331.0,91309.0,0.010961]
[1767827779678,0.11901388,91329.0,91306.0,0.02682572]
[1767827779871,0.09195862,91328.0,91312.0,0.010961]
[1767827780378,0.09195862,91328.0,91307.0,0.010961]
[1767827781274,0.02705526,91327.0,91307.0,0.010961]
[1767827781484,0.09195862,91324.0,91307.0,0.010961]
[1767827782971,0.02705526,91348.0,91320.0,0.09641537]
[1767827783168,0.09195862,91342.0,91326.0,0.010959]
[1767827783678,0.09195862,91345.0,91326.0,0.010959]
[1767827784077,0.09195862,91345.0,91321.0,0.0932]
[1767827784078,0.09195862,91343.0,91322.0,0.010959]
[1767827784388,0.09195862,91338.0,91321.0,0.0932]
[1767827784585,0.09195862,91334.0,91322.0,0.0932]
[1767827785174,0.09195862,91333.0,91322.0,0.0932]
[1767827785378,0.11901388,91333.0,91312.0,0.010961]
[1767827785578,0.010957,91340.0,91307.0,0.09641537]
[1767827785579,0.09195862,91326.0,91313.0,0.09316]
[1767827785779,0.010955,91358.0,91307.0,0.010961]
[1767827785780,0.11901388,91321.0,91307.0,0.010962]
[1767827785974,0.09195862,91318.0,91305.0,0.010962]
[1767827786181,0.09195862,91318.0,91305.0,0.104122]
[1767827786379,0.02924468,91349.0,91327.0,0.09641537]
[1767827786870,0.02924468,91349.0,91326.0,0.01096]
[1767827787276,0.02705526,91347.0,91326.0,0.01096]
[1767827788377,0.11901388,91342.0,91326.0,0.01096]
[1767827788578,0.11901388,91342.0,91322.0,0.01096]
[1767827788781,0.02705526,91341.0,91322.0,0.01096]
[1767827789086,0.11901388,91334.0,91320.0,0.09316]
[1767827789285,0.11901388,91329.0,91313.0,0.010962]
[1767827789489,0.11901388,91329.0,91313.0,0.104122]
[1767827789676,0.02705526,91348.0,91330.0,0.010959]
[1767827789978,0.02705526,91346.0,91332.0,0.010959]
[1767827790181,0.02705526,91345.0,91332.0,0.104119]
[1767827790389,0.09195862,91346.0,91332.0,0.104119]
[1767827792384,0.09195862,91346.0,91335.0,0.010959]
[1767827793488,0.010956,91362.0,91335.0,0.010959]
[1767827793489,0.0254507,91377.0,91349.0,0.02388461]
[1767827793683,0.010948,91424.0,91348.0,0.18597179]
[1767827793684,0.0254507,91367.0,91348.0,0.18597179]
[1767827793878,0.12444199,91364.0,91348.0,0.18597179]
[1767827794075,0.12444199,91364.0,91348.0,0.09316]
[1767827794290,0.12444199,91356.0,91348.0,0.09316]
[1767827794478,0.12444199,91355.0,91343.0,0.09316]
[1767827794680,0.0254507,91354.0,91343.0,0.09316]
[1767827794880,0.09899129,91355.0,91343.0,0.09316]
[1767827795289,0.0254507,91358.0,91343.0,0.09316]
[1767827795790,0.0254507,91358.0,91332.0,0.09316]
[1767827795791,0.0254507,91351.0,91332.0,0.09316]
[1767827796089,0.0254507,91344.0,91327.0,0.01096]
[1767827796293,0.0254507,91343.0,91323.0,0.01096]
[1767827796494,0.0254507,91343.0,91324.0,0.09316]
[1767827796685,0.0254507,91343.0,91325.0,0.01096]
[1767827796881,0.09899129,91360.0,91334.0,0.02388461]
[1767827797087,0.09899129,91360.0,91348.0,0.010957]
[1767827797294,0.09899129,91360.0,91344.0,0.010958]
[1767827797594,0.09899129,91360.0,91347.0,0.010957]
[1767827798589,0.0254507,91366.0,91347.0,0.010957]
[1767827799690,0.0254507,91365.0,91347.0,0.010957]
[1767827800091,0.0254507,91365.0,91345.0,0.09316]
[1767827800495,0.0254507,91378.0,91359.0,0.010956]
[1767827800694,0.10117999,91379.0,91359.0,0.010956]
[1767827800695,0.12444199,91377.0,91359.0,0.010956]
[1767827800897,0.09899129,91377.0,91362.0,0.010956]
[1767827801092,0.09899129,91377.0,91358.0,0.010956]
[1767827801696,0.0254507,91376.0,91357.0,0.09316]
[1767827801900,0.12444199,91376.0,91357.0,0.09316]
[1767827802598,0.12444199,91376.0,91358.0,0.010956]
[1767827803991,0.12444199,91376.0,91339.0,0.12]
[1767827803992,0.12444199,91361.0,91339.0,0.12]
[1767827804193,0.0254507,91371.0,91346.0,0.09281179]
[1767827804592,0.0254507,91371.0,91349.0,0.010957]
[1767827804593,0.0254507,91370.0,91349.0,0.010957]
[1767827804792,0.0254507,91368.0,91346.0,0.09281179]
[1767827804991,0.0254507,91366.0,91345.0,0.010958]
[1767827805499,0.0254507,91359.0,91341.0,0.09312]
[1767827805700,0.0254507,91359.0,91342.0,0.09312]
[1767827805997,0.0254507,91359.0,91343.0,0.010958]
[1767827807186,0.0254507,91359.0,91341.0,0.09312]
[1767827807387,0.0021887,91379.0,91363.0,0.09281179]
[1767827807704,0.0254507,91374.0,91359.0,0.010956]
[1767827807999,0.0021887,91379.0,91358.0,0.09281179]
[1767827808189,0.0021887,91379.0,91363.0,0.010956]
[1767827808792,0.0276394,91379.0,91363.0,0.010956]
[1767827809196,0.0276394,91379.0,91359.0,0.010956]
[1767827809804,0.0254507,91377.0,91355.0,0.104076]
[1767827810010,0.0254507,91372.0,91356.0,0.09312]
[1767827810302,0.0254507,91371.0,91351.0,0.010957]
[1767827810688,0.0021887,91379.0,91363.0,0.02388461]
[1767827810888,0.0276394,91379.0,91363.0,0.02388461]
[1767827811505,0.12663069,91379.0,91363.0,0.02388461]
[1767827812295,0.0254507,91378.0,91363.0,0.02388461]
[1767827812504,0.0254507,91377.0,91357.0,0.010956]
[1767827813592,0.0021887,91379.0,91343.0,0.09281179]
[1767827813593,0.0254507,91369.0,91343.0,0.09281179]
[1767827813808,0.0254507,91369.0,91349.0,0.010957]
[1767827814008,0.0254507,91369.0,91333.0,0.010959]
[1767827814009,0.12444199,91362.0,91335.0,0.09281179]
[1767827814203,0.0254507,91360.0,91336.0,0.09312]
[1767827814404,0.09312,91385.0,91340.0,0.1166964]
[1767827814601,0.09312,91385.0,91336.0,0.09312]
[1767827814602,0.0254507,91380.0,91356.0,0.09281179]
[1767827814796,0.0254507,91374.0,91351.0,0.010957]
[1767827815006,0.0254507,91372.0,91351.0,0.010957]
[1767827815311,0.0254507,91370.0,91351.0,0.010957]
[1767827815608,0.0254507,91370.0,91349.0,0.18593179]
[1767827815992,0.0254507,91370.0,91332.0,0.010959]
[1767827815993,0.0254507,91362.0,91342.0,0.010958]
[1767827816198,0.0254507,91362.0,91342.0,0.104078]
[1767827816407,0.0254507,91361.0,91338.0,0.10377079]
[1767827816609,0.0254507,91360.0,91340.0,0.09312]
[1767827817212,0.0254507,91360.0,91338.0,0.10377079]
[1767827817512,0.0254507,91360.0,91339.0,0.09312]
[1767827817696,0.0254507,91382.0,91344.0,0.1166964]
[1767827817903,0.0254507,91373.0,91350.0,0.010957]
[1767827818203,0.12374717,91378.0,91353.0,0.10376879]
[1767827818411,0.0254507,91374.0,91353.0,0.010957]
[1767827819209,0.0021887,91379.0,91356.0,0.010956]
[1767827819402,0.0276394,91379.0,91356.0,0.010956]
[1767827819713,0.0254507,91378.0,91356.0,0.010956]
[1767827820308,0.0254507,91377.0,91356.0,0.010956]
[1767827821210,0.0254507,91377.0,91352.0,0.010957]
[1767827821514,0.0364047,91375.0,91350.0,0.09281179]
[1767827821704,0.0254507,91366.0,91341.0,0.09281179]
[1767827821914,0.0254507,91360.0,91342.0,0.09312]
[1767827822210,0.0254507,91360.0,91341.0,0.09312]
[1767827822607,0.02435361,91359.0,91335.0,0.010959]
[1767827823006,0.02435361,91359.0,91336.0,0.09312]
[1767827823311,0.02435361,91355.0,91330.0,0.010959]
[1767827823616,0.02435361,91352.0,91332.0,0.010959]
[1767827824507,0.02435361,91352.0,91331.0,0.09312]
[1767827825015,0.02435361,91346.0,91323.0,0.09312]
[1767827825315,0.02435361,91346.0,91323.0,0.10408]
[1767827825706,0.02435361,91346.0,91323.0,0.1047763]
[1767827825910,0.02435361,91346.0,91323.0,0.1978963]
[1767827826110,0.02435361,91355.0,91331.0,0.0938163]